[Event "*** Titled Tuesday Blitz"]
[Site "Chess.com"]
[Date "2020.11.24"]
[Round "8"]
[White "Matols"]
[Black "Khnykin_Nikolay"]
[Result "1-0"]
[WhiteElo "2228"]
[BlackElo "2063"]
[TimeControl "180+1"]
[EndTime "11:45:56 PST"]
[Termination "Matols won on time"]

1. d4 {[%clk 0:03:00.9]} 1... e6 {[%clk 0:02:41.8]} 2. c4 {[%clk 0:03:00.5]}
2... d5 {[%clk 0:02:39.8]} 3. Nf3 {[%clk 0:02:59.7]} 3... Nf6 {[%clk 0:02:38.9]}
4. g3 {[%clk 0:02:59.5]} 4... Bb4+ {[%clk 0:02:38.9]} 5. Bd2 {[%clk 0:02:58.5]}
5... Bxd2+ {[%clk 0:02:37.6]} 6. Nbxd2 {[%clk 0:02:57.5]} 6... O-O {[%clk
0:02:36.2]} 7. Bg2 {[%clk 0:02:57]} 7... Nc6 {[%clk 0:02:28.4]} 8. O-O {[%clk
0:02:55.1]} 8... b6 {[%clk 0:02:24]} 9. cxd5 {[%clk 0:02:50.9]} 9... exd5 {[%clk
0:02:22.2]} 10. Rc1 {[%clk 0:02:50.1]} 10... Bb7 {[%clk 0:02:21.1]} 11. Qa4
{[%clk 0:02:42.8]} 11... Qd6 {[%clk 0:02:06.4]} 12. e3 {[%clk 0:02:35.4]} 12...
Rfe8 {[%clk 0:02:04.3]} 13. a3 {[%clk 0:02:32.5]} 13... Rad8 {[%clk 0:02:00.7]}
14. b4 {[%clk 0:02:31.2]} 14... Ne4 {[%clk 0:01:58.4]} 15. Rc2 {[%clk
0:02:20.4]} 15... Qg6 {[%clk 0:01:52.7]} 16. Rfc1 {[%clk 0:02:18.2]} 16... Rd6
{[%clk 0:01:44.1]} 17. b5 {[%clk 0:02:08.4]} 17... Nxd2 {[%clk 0:01:33.5]} 18.
Nxd2 {[%clk 0:02:06.7]} 18... Na5 {[%clk 0:01:24.2]} 19. Rxc7 {[%clk 0:02:05.1]}
19... Rf6 {[%clk 0:01:14.3]} 20. Qc2 {[%clk 0:01:57.1]} 20... Qg4 {[%clk
0:01:06.3]} 21. Nb3 {[%clk 0:01:24.9]} 21... Ba8 {[%clk 0:00:45.7]} 22. Rc8
{[%clk 0:01:18.7]} 22... Re6 {[%clk 0:00:39.8]} 23. h3 {[%clk 0:00:53.7]} 23...
Qg5 {[%clk 0:00:31.6]} 24. Nxa5 {[%clk 0:00:45.9]} 24... bxa5 {[%clk 0:00:30.6]}
25. Qc5 {[%clk 0:00:37]} 25... Bb7 {[%clk 0:00:20.8]} 26. Rxe8+ {[%clk
0:00:35.6]} 26... Rxe8 {[%clk 0:00:20.2]} 27. Qxa7 {[%clk 0:00:33.4]} 27... Ba8
{[%clk 0:00:17.3]} 28. Qxa5 {[%clk 0:00:32.5]} 28... h6 {[%clk 0:00:16.1]} 29.
Qc3 {[%clk 0:00:31.6]} 29... Bb7 {[%clk 0:00:14]} 30. a4 {[%clk 0:00:31.2]}
30... Rc8 {[%clk 0:00:13.5]} 31. Qb2 {[%clk 0:00:30.8]} 31... Re8 {[%clk
0:00:13.2]} 32. a5 {[%clk 0:00:30.2]} 32... Ba8 {[%clk 0:00:12.4]} 33. a6 {[%clk
0:00:29.6]} 33... Qf5 {[%clk 0:00:02.1]} 34. b6 {[%clk 0:00:28.2]} 34... Qd3
{[%clk 0:00:02.1]} 35. b7 {[%clk 0:00:26.2]} 35... Bxb7 {[%clk 0:00:02.2]} 36.
axb7 {[%clk 0:00:26]} 36... Qa6 {[%clk 0:00:01.9]} 37. b8=Q {[%clk 0:00:25.4]}
1-0

[Event "*** Titled Tuesday Blitz"]
[Site "Chess.com"]
[Date "2020.11.24"]
[Round "8"]
[White "profofchess"]
[Black "Nachsueb"]
[Result "1-0"]
[WhiteElo "2383"]
[BlackElo "2174"]
[TimeControl "180+1"]
[EndTime "11:46:03 PST"]
[Termination "profofchess won by resignation"]

1. e4 {[%clk 0:03:00.9]} 1... e6 {[%clk 0:02:59.4]} 2. d4 {[%clk 0:03:00.2]}
2... d5 {[%clk 0:02:59.3]} 3. Nc3 {[%clk 0:03:00.8]} 3... Bb4 {[%clk 0:02:59]}
4. e5 {[%clk 0:03:00.5]} 4... c5 {[%clk 0:02:59.2]} 5. Bd2 {[%clk 0:03:01]} 5...
Ne7 {[%clk 0:02:59.2]} 6. a3 {[%clk 0:02:58.8]} 6... Bxc3 {[%clk 0:02:58.3]} 7.
Bxc3 {[%clk 0:02:59.7]} 7... cxd4 {[%clk 0:02:56.8]} 8. Qxd4 {[%clk 0:03:00.6]}
8... Nbc6 {[%clk 0:02:56.6]} 9. Qg4 {[%clk 0:03:00.7]} 9... Nf5 {[%clk
0:02:49.2]} 10. Nf3 {[%clk 0:02:53.4]} 10... h5 {[%clk 0:02:43.9]} 11. Qf4
{[%clk 0:02:50.5]} 11... Bd7 {[%clk 0:02:31.6]} 12. Bd3 {[%clk 0:02:48.8]} 12...
Qe7 {[%clk 0:02:09.6]} 13. O-O-O {[%clk 0:02:44.4]} 13... O-O-O {[%clk
0:02:09.1]} 14. Bxf5 {[%clk 0:02:39.1]} 14... exf5 {[%clk 0:02:09.3]} 15. Rxd5
{[%clk 0:02:39.1]} 15... Be6 {[%clk 0:02:03.4]} 16. Rd6 {[%clk 0:02:39.3]} 16...
Qc7 {[%clk 0:01:35]} 17. Rhd1 {[%clk 0:02:36]} 17... Qb6 {[%clk 0:01:34.8]} 18.
Ng5 {[%clk 0:02:27]} 18... Qc5 {[%clk 0:01:13.6]} 19. Nxe6 {[%clk 0:02:17.6]}
19... fxe6 {[%clk 0:01:14.5]} 20. Rxe6 {[%clk 0:02:17]} 20... Rxd1+ {[%clk
0:01:15.2]} 21. Kxd1 {[%clk 0:02:17]} 21... Qd5+ {[%clk 0:01:14.7]} 22. Kc1
{[%clk 0:02:08.2]} 22... Qxe6 {[%clk 0:01:15]} 23. Qg5 {[%clk 0:02:04.7]} 23...
g6 {[%clk 0:01:14.8]} 24. b4 {[%clk 0:02:00.4]} 24... Rd8 {[%clk 0:01:13.4]} 25.
Kb2 {[%clk 0:02:00.2]} 25... Nxe5 {[%clk 0:01:03.7]} 26. Qf4 {[%clk 0:01:41]}
26... Nc4+ {[%clk 0:01:03.5]} 27. Kb3 {[%clk 0:01:41.1]} 27... Ne3+ {[%clk
0:01:03.3]} 28. Ka4 {[%clk 0:01:35]} 28... Qa6+ {[%clk 0:00:56.1]} 29. Kb3
{[%clk 0:01:33.8]} 29... Nd5 {[%clk 0:00:56.3]} 30. Qd4 {[%clk 0:01:28.5]} 30...
Nxc3 {[%clk 0:00:55.6]} 31. Qxc3+ {[%clk 0:01:28.6]} 31... Qc6 {[%clk
0:00:55.4]} 32. Qg3 {[%clk 0:01:26.3]} 32... Qd5+ {[%clk 0:00:52.5]} 33. Kb2
{[%clk 0:01:26.6]} 33... Qd4+ {[%clk 0:00:51.2]} 34. c3 {[%clk 0:01:25.8]} 34...
Qd2+ {[%clk 0:00:51.3]} 35. Kb3 {[%clk 0:01:26]} 35... Qd6 {[%clk 0:00:52.2]}
36. Qe3 {[%clk 0:01:25]} 36... Kb8 {[%clk 0:00:50.5]} 37. a4 {[%clk 0:01:23.3]}
37... Qd1+ {[%clk 0:00:50.4]} 38. Ka3 {[%clk 0:01:20.4]} 38... Qa1+ {[%clk
0:00:45.2]} 39. Kb3 {[%clk 0:01:20.6]} 39... Qb1+ {[%clk 0:00:39.7]} 40. Ka3
{[%clk 0:01:20.7]} 40... Qd3 {[%clk 0:00:38.5]} 41. Qe5+ {[%clk 0:01:20.5]}
41... Qd6 {[%clk 0:00:38.7]} 42. Qg7 {[%clk 0:01:19.1]} 42... Rc8 {[%clk
0:00:37.5]} 43. Kb2 {[%clk 0:01:08.1]} 43... Qc6 {[%clk 0:00:36.4]} 44. g3
{[%clk 0:01:06.2]} 44... Qf3 {[%clk 0:00:33.3]} 45. Qd4 {[%clk 0:01:05.3]} 45...
Qe2+ {[%clk 0:00:32]} 46. Kb3 {[%clk 0:01:05.1]} 46... Qe6+ {[%clk 0:00:29.8]}
47. Kb2 {[%clk 0:01:05.3]} 47... Qc6 {[%clk 0:00:26.8]} 48. a5 {[%clk
0:01:03.7]} 48... Qc4 {[%clk 0:00:24.6]} 49. Qf6 {[%clk 0:00:54.7]} 49... Re8
{[%clk 0:00:22.6]} 50. Ka3 {[%clk 0:00:50.6]} 50... a6 {[%clk 0:00:21.1]} 51. h4
{[%clk 0:00:48.1]} 51... Rc8 {[%clk 0:00:18.1]} 52. Kb2 {[%clk 0:00:47.6]} 52...
Qxb4+ {[%clk 0:00:18.2]} 53. cxb4 {[%clk 0:00:47.4]} 1-0

[Event "*** Titled Tuesday Blitz"]
[Site "Chess.com"]
[Date "2020.11.24"]
[Round "8"]
[White "Brave_spirit12"]
[Black "SpasKozhuharov"]
[Result "0-1"]
[WhiteElo "2498"]
[BlackElo "2667"]
[TimeControl "180+1"]
[EndTime "11:46:04 PST"]
[Termination "SpasKozhuharov won by resignation"]

1. e4 {[%clk 0:03:00.3]} 1... c5 {[%clk 0:02:59.4]} 2. c3 {[%clk 0:02:59.9]}
2... d6 {[%clk 0:03:00.3]} 3. d4 {[%clk 0:02:59.1]} 3... Nf6 {[%clk 0:03:00.8]}
4. Bd3 {[%clk 0:02:57.5]} 4... g6 {[%clk 0:02:58.3]} 5. Nf3 {[%clk 0:02:56.4]}
5... Bg7 {[%clk 0:02:57.3]} 6. O-O {[%clk 0:02:54.7]} 6... O-O {[%clk 0:02:56]}
7. Qe2 {[%clk 0:02:52.5]} 7... cxd4 {[%clk 0:02:52.6]} 8. cxd4 {[%clk
0:02:50.5]} 8... Nc6 {[%clk 0:02:51.2]} 9. h3 {[%clk 0:02:48.5]} 9... e5 {[%clk
0:02:48.2]} 10. Be3 {[%clk 0:02:35.6]} 10... Re8 {[%clk 0:02:33.8]} 11. Nc3
{[%clk 0:02:32.8]} 11... exd4 {[%clk 0:02:21.6]} 12. Nxd4 {[%clk 0:02:33.7]}
12... d5 {[%clk 0:02:16.5]} 13. Nxc6 {[%clk 0:02:01.6]} 13... bxc6 {[%clk
0:02:17.4]} 14. exd5 {[%clk 0:01:51.6]} 14... Nxd5 {[%clk 0:02:16.5]} 15. Nxd5
{[%clk 0:01:48.9]} 15... cxd5 {[%clk 0:02:17.4]} 16. Qf3 {[%clk 0:01:47.9]}
16... Bxb2 {[%clk 0:02:05.7]} 17. Rab1 {[%clk 0:01:46]} 17... Bg7 {[%clk
0:01:55.2]} 18. Rfd1 {[%clk 0:01:44.3]} 18... Be6 {[%clk 0:01:43.9]} 19. Bb5
{[%clk 0:01:32.4]} 19... Qa5 {[%clk 0:01:26.3]} 20. Bxe8 {[%clk 0:01:30]} 20...
Rxe8 {[%clk 0:01:27.2]} 21. Bd4 {[%clk 0:00:45.7]} 21... Bxd4 {[%clk 0:01:26]}
22. Rxd4 {[%clk 0:00:46.6]} 22... Qxa2 {[%clk 0:01:26.3]} 23. Re1 {[%clk
0:00:44.5]} 23... Rb8 {[%clk 0:01:21.1]} 24. h4 {[%clk 0:00:42.7]} 24... Rb1
{[%clk 0:01:18.2]} 25. Rxb1 {[%clk 0:00:30.9]} 25... Qxb1+ {[%clk 0:01:19.1]}
26. Kh2 {[%clk 0:00:31.4]} 26... h5 {[%clk 0:01:17.7]} 27. Rd1 {[%clk
0:00:19.9]} 27... Qb2 {[%clk 0:01:09]} 28. Qe3 {[%clk 0:00:13.4]} 28... a5
{[%clk 0:01:05.8]} 29. Rd4 {[%clk 0:00:09.7]} 29... Qb6 {[%clk 0:00:57.5]} 30.
Qd2 {[%clk 0:00:07.5]} 30... Qb5 {[%clk 0:00:37.4]} 31. Qc2 {[%clk 0:00:04.9]}
31... Bd7 {[%clk 0:00:31.5]} 32. Qc7 {[%clk 0:00:04.3]} 32... a4 {[%clk
0:00:26]} 33. Qd6 {[%clk 0:00:04]} 33... Be6 {[%clk 0:00:20.9]} 34. Rb4 {[%clk
0:00:04]} 34... Qe2 {[%clk 0:00:19.3]} 35. Rb8+ {[%clk 0:00:04.6]} 35... Kh7
{[%clk 0:00:19.1]} 36. Qf8 {[%clk 0:00:05.2]} 36... Qe5+ {[%clk 0:00:18.4]} 37.
g3 {[%clk 0:00:05.8]} 37... d4 {[%clk 0:00:16.6]} 38. Qh8+ {[%clk 0:00:05.4]}
38... Qxh8 {[%clk 0:00:15.9]} 0-1

[Event "*** Titled Tuesday Blitz"]
[Site "Chess.com"]
[Date "2020.11.24"]
[Round "8"]
[White "Sjakkerntobi"]
[Black "svilson23"]
[Result "1-0"]
[WhiteElo "2368"]
[BlackElo "2242"]
[TimeControl "180+1"]
[EndTime "11:46:11 PST"]
[Termination "Sjakkerntobi won by resignation"]

1. e4 {[%clk 0:03:00.9]} 1... c5 {[%clk 0:02:59.8]} 2. Nf3 {[%clk 0:03:00.8]}
2... Nc6 {[%clk 0:02:59.8]} 3. b4 {[%clk 0:02:53.8]} 3... cxb4 {[%clk
0:02:52.8]} 4. d4 {[%clk 0:02:52.7]} 4... d5 {[%clk 0:02:53]} 5. exd5 {[%clk
0:02:52.8]} 5... Qxd5 {[%clk 0:02:52.3]} 6. c4 {[%clk 0:02:52.6]} 6... Qe4+
{[%clk 0:02:42.9]} 7. Be2 {[%clk 0:02:50.2]} 7... e6 {[%clk 0:02:39.1]} 8. O-O
{[%clk 0:02:49.4]} 8... Nf6 {[%clk 0:02:35.2]} 9. d5 {[%clk 0:02:32]} 9... Ne5
{[%clk 0:02:03.1]} 10. Re1 {[%clk 0:02:06.3]} 10... Bc5 {[%clk 0:01:43.8]} 11.
Bb2 {[%clk 0:02:02.3]} 11... Neg4 {[%clk 0:01:13.7]} 12. Bd4 {[%clk 0:01:45.6]}
12... Bxd4 {[%clk 0:01:02.4]} 13. Nxd4 {[%clk 0:01:44.9]} 13... O-O {[%clk
0:01:00.8]} 14. h3 {[%clk 0:01:29.2]} 14... Nh6 {[%clk 0:00:51.8]} 15. Bd3
{[%clk 0:01:22.8]} 15... Qh4 {[%clk 0:00:45]} 16. Nf3 {[%clk 0:00:57]} 16... Qh5
{[%clk 0:00:40.8]} 17. Re5 {[%clk 0:00:56]} 17... Nf5 {[%clk 0:00:39.4]} 18. Be2
{[%clk 0:00:23.2]} 18... exd5 {[%clk 0:00:32.5]} 19. g4 {[%clk 0:00:18.5]} 19...
Nxg4 {[%clk 0:00:30.3]} 20. Nh2 {[%clk 0:00:19.1]} 20... Qxh3 {[%clk 0:00:21.8]}
21. Bxg4 {[%clk 0:00:19.3]} 21... Ne3 {[%clk 0:00:14.4]} 22. Rxe3 {[%clk
0:00:17.1]} 22... Bxg4 {[%clk 0:00:11.9]} 23. Qxg4 {[%clk 0:00:15.9]} 23... Qh6
{[%clk 0:00:10.8]} 24. Nd2 {[%clk 0:00:15.2]} 24... Qf6 {[%clk 0:00:09.8]} 25.
Rae1 {[%clk 0:00:14.6]} 25... dxc4 {[%clk 0:00:09.4]} 26. Nxc4 {[%clk
0:00:13.5]} 26... b5 {[%clk 0:00:08.3]} 27. Ne5 {[%clk 0:00:14.4]} 27... h6
{[%clk 0:00:07.4]} 28. Nd7 {[%clk 0:00:14.2]} 28... Qc6 {[%clk 0:00:04.7]} 29.
Nxf8 {[%clk 0:00:14.1]} 29... Rxf8 {[%clk 0:00:05.6]} 30. Qe4 {[%clk 0:00:14.7]}
30... Qf6 {[%clk 0:00:04.8]} 31. Rf3 {[%clk 0:00:14.7]} 31... Qb2 {[%clk
0:00:04.6]} 32. Re2 {[%clk 0:00:14.6]} 32... Qa1+ {[%clk 0:00:04.4]} 33. Kg2
{[%clk 0:00:15.1]} 33... a5 {[%clk 0:00:04.5]} 34. Qg4 {[%clk 0:00:13]} 34...
Qc1 {[%clk 0:00:03.1]} 35. Rg3 {[%clk 0:00:12.9]} 35... Qc6+ {[%clk 0:00:03.2]}
36. Nf3 {[%clk 0:00:12.9]} 36... Qf6 {[%clk 0:00:02.8]} 37. Qd4 {[%clk
0:00:12.6]} 37... Qxd4 {[%clk 0:00:02.1]} 38. Nxd4 {[%clk 0:00:13.5]} 1-0

[Event "*** Titled Tuesday Blitz"]
[Site "Chess.com"]
[Date "2020.11.24"]
[Round "8"]
[White "CoachHakia"]
[Black "FMAntonio"]
[Result "1/2-1/2"]
[WhiteElo "2173"]
[BlackElo "2344"]
[TimeControl "180+1"]
[EndTime "11:46:11 PST"]
[Termination "Game drawn by repetition"]

1. d4 {[%clk 0:03:00.8]} 1... Nf6 {[%clk 0:02:53.8]} 2. Bg5 {[%clk 0:03:00.1]}
2... d5 {[%clk 0:02:52.7]} 3. Bxf6 {[%clk 0:03:00.2]} 3... exf6 {[%clk
0:02:52.6]} 4. g3 {[%clk 0:03:00.1]} 4... Bd6 {[%clk 0:02:51.7]} 5. Bg2 {[%clk
0:03:00.3]} 5... c6 {[%clk 0:02:51.5]} 6. e3 {[%clk 0:03:00.6]} 6... O-O {[%clk
0:02:50.9]} 7. Ne2 {[%clk 0:03:01.1]} 7... f5 {[%clk 0:02:50.8]} 8. O-O {[%clk
0:03:01.2]} 8... Nd7 {[%clk 0:02:50.7]} 9. Nd2 {[%clk 0:02:56.5]} 9... Nf6
{[%clk 0:02:49.4]} 10. c4 {[%clk 0:02:57]} 10... g6 {[%clk 0:02:44.1]} 11. b3
{[%clk 0:02:51.8]} 11... Qe7 {[%clk 0:02:40.9]} 12. Re1 {[%clk 0:02:44.9]} 12...
Be6 {[%clk 0:02:39.8]} 13. h4 {[%clk 0:02:43.2]} 13... Ne4 {[%clk 0:02:36.7]}
14. c5 {[%clk 0:02:38.4]} 14... Bc7 {[%clk 0:02:36.1]} 15. b4 {[%clk 0:02:30.1]}
15... Kg7 {[%clk 0:02:35.1]} 16. a4 {[%clk 0:02:26.7]} 16... h6 {[%clk
0:02:34.2]} 17. Nf4 {[%clk 0:02:16.8]} 17... g5 {[%clk 0:02:31.3]} 18. hxg5
{[%clk 0:02:12.8]} 18... hxg5 {[%clk 0:02:31.2]} 19. Nxe6+ {[%clk 0:01:59.9]}
19... fxe6 {[%clk 0:02:29.8]} 20. Nxe4 {[%clk 0:01:55.7]} 20... dxe4 {[%clk
0:02:20]} 21. b5 {[%clk 0:01:55.3]} 21... Ba5 {[%clk 0:02:01.2]} 22. Re2 {[%clk
0:01:53.8]} 22... f4 {[%clk 0:01:54.1]} 23. exf4 {[%clk 0:01:48.6]} 23... gxf4
{[%clk 0:01:53.6]} 24. Rxe4 {[%clk 0:01:47.2]} 24... Rf6 {[%clk 0:01:33.3]} 25.
Qg4+ {[%clk 0:01:39.2]} 25... Rg6 {[%clk 0:01:32]} 26. Qxf4 {[%clk 0:01:39.5]}
26... Bc7 {[%clk 0:01:30.6]} 27. Qe3 {[%clk 0:01:36.3]} 27... Rf8 {[%clk
0:01:10.8]} 28. Re1 {[%clk 0:01:35.2]} 28... Qf7 {[%clk 0:01:08.2]} 29. f4
{[%clk 0:01:15.9]} 29... Re8 {[%clk 0:01:02.7]} 30. Bh3 {[%clk 0:01:07]} 30...
Rh6 {[%clk 0:01:00.9]} 31. Rxe6 {[%clk 0:00:31.3]} 31... Rexe6 {[%clk
0:00:48.1]} 32. Bxe6 {[%clk 0:00:31.7]} 32... Qh5 {[%clk 0:00:46.4]} 33. Kf1
{[%clk 0:00:23.2]} 33... Qh1+ {[%clk 0:00:38.5]} 34. Ke2 {[%clk 0:00:22.8]}
34... Qg2+ {[%clk 0:00:37.2]} 35. Kd3 {[%clk 0:00:18.7]} 35... Ba5 {[%clk
0:00:11.8]} 36. Bf5 {[%clk 0:00:17]} 36... Bxe1 {[%clk 0:00:10.5]} 37. Qe7+
{[%clk 0:00:16.9]} 37... Kg8 {[%clk 0:00:10.4]} 38. Qe8+ {[%clk 0:00:15]} 38...
Kg7 {[%clk 0:00:10.8]} 39. Qe7+ {[%clk 0:00:15.3]} 39... Kg8 {[%clk 0:00:10.6]}
40. Qe8+ {[%clk 0:00:13.9]} 40... Kg7 {[%clk 0:00:10.8]} 41. Qe7+ {[%clk
0:00:13.8]} 1/2-1/2

[Event "*** Titled Tuesday Blitz"]
[Site "Chess.com"]
[Date "2020.11.24"]
[Round "8"]
[White "wisdomboy"]
[Black "Chessdude1987"]
[Result "1-0"]
[WhiteElo "2179"]
[BlackElo "2332"]
[TimeControl "180+1"]
[EndTime "11:46:12 PST"]
[Termination "wisdomboy won on time"]

1. d4 {[%clk 0:03:00.9]} 1... Nf6 {[%clk 0:02:59.3]} 2. c4 {[%clk 0:03:01.4]}
2... g6 {[%clk 0:02:58.3]} 3. f3 {[%clk 0:03:01.7]} 3... d5 {[%clk 0:02:51.6]}
4. cxd5 {[%clk 0:03:02.6]} 4... Nxd5 {[%clk 0:02:50.7]} 5. e4 {[%clk 0:03:03.2]}
5... Nf6 {[%clk 0:02:50.6]} 6. Nc3 {[%clk 0:03:03.2]} 6... Bg7 {[%clk 0:02:50]}
7. Be3 {[%clk 0:03:02.8]} 7... O-O {[%clk 0:02:48.8]} 8. Qd2 {[%clk 0:03:03.2]}
8... c6 {[%clk 0:02:41.2]} 9. O-O-O {[%clk 0:02:53.7]} 9... b5 {[%clk
0:02:35.7]} 10. Kb1 {[%clk 0:02:51.1]} 10... b4 {[%clk 0:02:33]} 11. Na4 {[%clk
0:02:50.8]} 11... Qa5 {[%clk 0:02:32.7]} 12. b3 {[%clk 0:02:49.7]} 12... Nfd7
{[%clk 0:02:23.3]} 13. h4 {[%clk 0:02:46.7]} 13... c5 {[%clk 0:02:13.8]} 14.
dxc5 {[%clk 0:02:44.7]} 14... Na6 {[%clk 0:02:04.9]} 15. Bxa6 {[%clk 0:02:27.2]}
15... Qxa6 {[%clk 0:02:03.2]} 16. Bd4 {[%clk 0:02:27.6]} 16... Nf6 {[%clk
0:01:41.2]} 17. g4 {[%clk 0:02:15.9]} 17... Rd8 {[%clk 0:01:37.5]} 18. Qc2
{[%clk 0:02:02.2]} 18... Bd7 {[%clk 0:01:21.9]} 19. g5 {[%clk 0:01:54.9]} 19...
Nh5 {[%clk 0:01:14.3]} 20. Bxg7 {[%clk 0:01:52.3]} 20... Nxg7 {[%clk 0:01:14]}
21. Nb2 {[%clk 0:01:31.2]} 21... Bb5 {[%clk 0:01:07.6]} 22. Nh3 {[%clk
0:01:27.2]} 22... Rdc8 {[%clk 0:01:05.1]} 23. Rd5 {[%clk 0:01:09.9]} 23... Bc6
{[%clk 0:00:52.7]} 24. Rd4 {[%clk 0:01:06.7]} 24... Rc7 {[%clk 0:00:52.5]} 25.
Qc4 {[%clk 0:01:05.2]} 25... Qc8 {[%clk 0:00:48.1]} 26. Rhd1 {[%clk 0:01:02.9]}
26... Ne6 {[%clk 0:00:43.9]} 27. R4d2 {[%clk 0:00:58.9]} 27... Rb8 {[%clk
0:00:38.1]} 28. f4 {[%clk 0:00:55.8]} 28... Bb5 {[%clk 0:00:32.4]} 29. Qc2
{[%clk 0:00:38.3]} 29... Rxc5 {[%clk 0:00:31]} 30. Nc4 {[%clk 0:00:37.3]} 30...
Bxc4 {[%clk 0:00:29.9]} 31. bxc4 {[%clk 0:00:38.2]} 31... Rxc4 {[%clk
0:00:29.3]} 32. Qd3 {[%clk 0:00:38]} 32... Rc3 {[%clk 0:00:27.8]} 33. Qd7 {[%clk
0:00:33.9]} 33... Qa6 {[%clk 0:00:22.4]} 34. f5 {[%clk 0:00:28.1]} 34... b3
{[%clk 0:00:22.3]} 35. a4 {[%clk 0:00:17.5]} 35... Rxh3 {[%clk 0:00:20]} 36.
fxe6 {[%clk 0:00:16.3]} 36... fxe6 {[%clk 0:00:20]} 37. Qc7 {[%clk 0:00:15.1]}
37... Rf8 {[%clk 0:00:17.1]} 38. Qxe7 {[%clk 0:00:13.9]} 38... Qxa4 {[%clk
0:00:16.6]} 39. Qxe6+ {[%clk 0:00:10.6]} 39... Kh8 {[%clk 0:00:16.8]} 40. Qxh3
{[%clk 0:00:11]} 40... Qa2+ {[%clk 0:00:16.3]} 41. Rxa2 {[%clk 0:00:10]} 1-0

[Event "*** Titled Tuesday Blitz"]
[Site "Chess.com"]
[Date "2020.11.24"]
[Round "8"]
[White "MasterMK73"]
[Black "annacramling"]
[Result "1-0"]
[WhiteElo "2270"]
[BlackElo "2068"]
[TimeControl "180+1"]
[EndTime "11:46:18 PST"]
[Termination "MasterMK73 won on time"]

1. e4 {[%clk 0:03:00.9]} 1... c5 {[%clk 0:02:49.6]} 2. Nf3 {[%clk 0:02:59.4]}
2... e6 {[%clk 0:02:46.6]} 3. d4 {[%clk 0:02:57.8]} 3... cxd4 {[%clk 0:02:46.7]}
4. Nxd4 {[%clk 0:02:57.9]} 4... Nf6 {[%clk 0:02:45.9]} 5. Bd3 {[%clk 0:02:56.4]}
5... Nc6 {[%clk 0:02:43.8]} 6. Nxc6 {[%clk 0:02:54.1]} 6... bxc6 {[%clk
0:02:44.7]} 7. O-O {[%clk 0:02:53.7]} 7... e5 {[%clk 0:02:45.3]} 8. Qe2 {[%clk
0:02:51.7]} 8... Be7 {[%clk 0:02:41.5]} 9. c4 {[%clk 0:02:51.4]} 9... d6 {[%clk
0:02:41.4]} 10. Nc3 {[%clk 0:02:51.2]} 10... O-O {[%clk 0:02:40.2]} 11. h3
{[%clk 0:02:51.4]} 11... Be6 {[%clk 0:02:35.8]} 12. Rd1 {[%clk 0:02:49]} 12...
Qc7 {[%clk 0:02:35]} 13. Be3 {[%clk 0:02:47.4]} 13... Nd7 {[%clk 0:02:34]} 14.
Rac1 {[%clk 0:02:46.7]} 14... Rfd8 {[%clk 0:02:29.6]} 15. Nd5 {[%clk 0:02:37.8]}
15... Bxd5 {[%clk 0:02:20.9]} 16. cxd5 {[%clk 0:02:36.6]} 16... c5 {[%clk
0:02:20.2]} 17. b4 {[%clk 0:02:36.1]} 17... Qb6 {[%clk 0:01:54.8]} 18. Rb1
{[%clk 0:02:31.3]} 18... Qc7 {[%clk 0:01:46]} 19. Rdc1 {[%clk 0:02:28.4]} 19...
Rab8 {[%clk 0:01:28.9]} 20. a4 {[%clk 0:02:26.4]} 20... a5 {[%clk 0:01:16.8]}
21. b5 {[%clk 0:02:20]} 21... Nb6 {[%clk 0:01:12.2]} 22. Bc2 {[%clk 0:02:15.5]}
22... Rdc8 {[%clk 0:01:07.8]} 23. f4 {[%clk 0:02:10.5]} 23... exf4 {[%clk
0:01:04.9]} 24. Bxf4 {[%clk 0:02:09.5]} 24... Bf6 {[%clk 0:01:05.2]} 25. Qg4
{[%clk 0:01:43.2]} 25... g6 {[%clk 0:00:55]} 26. Rf1 {[%clk 0:01:36.6]} 26...
Bg7 {[%clk 0:00:54.4]} 27. Qg3 {[%clk 0:01:31.6]} 27... Nc4 {[%clk 0:00:47.8]}
28. h4 {[%clk 0:01:01]} 28... h5 {[%clk 0:00:40.8]} 29. Bg5 {[%clk 0:00:51.8]}
29... Re8 {[%clk 0:00:37.8]} 30. Rf2 {[%clk 0:00:45]} 30... Bd4 {[%clk
0:00:34.8]} 31. Rf1 {[%clk 0:00:36.8]} 31... Ne5 {[%clk 0:00:14.7]} 32. Kh1
{[%clk 0:00:34]} 32... Bxf2 {[%clk 0:00:10.8]} 33. Rxf2 {[%clk 0:00:32.8]} 33...
Ng4 {[%clk 0:00:11.2]} 34. Rf4 {[%clk 0:00:30.7]} 34... Kh7 {[%clk 0:00:06.4]}
35. Bd1 {[%clk 0:00:28.5]} 35... Ne5 {[%clk 0:00:04.5]} 36. Bf6 {[%clk
0:00:26.7]} 36... Rg8 {[%clk 0:00:03.9]} 37. Qg5 {[%clk 0:00:25.8]} 37... Ng4
{[%clk 0:00:03]} 38. Bxg4 {[%clk 0:00:19.7]} 38... hxg4 {[%clk 0:00:03.9]} 39.
Rxg4 {[%clk 0:00:19.9]} 39... Qd7 {[%clk 0:00:03.8]} 40. h5 {[%clk 0:00:19.3]}
40... Qe8 {[%clk 0:00:03.1]} 41. hxg6+ {[%clk 0:00:18.2]} 41... Rxg6 {[%clk
0:00:03.5]} 42. Rh4+ {[%clk 0:00:18.5]} 42... Rh6 {[%clk 0:00:01.9]} 43. Qxh6+
{[%clk 0:00:17.6]} 1-0